bitfinex/quotes_BTCUSD_20240611
["timestamp","ask_amount","ask_price","bid_price","bid_amount"]
[1718133695435,0.24894,67141.0,67137.0,0.00516923]
[1718133695632,0.24894,67141.0,67137.0,0.00500989]
[1718133695849,0.25594,67141.0,67137.0,0.00600989]
[1718133696061,0.26194,67141.0,67137.0,0.00700989]
[1718133696919,0.26194,67141.0,67138.0,0.00015934]
[1718133697132,0.26194,67141.0,67137.0,0.00716923]
[1718133697351,0.26194,67141.0,67139.0,0.00500553]
[1718133697572,0.26194,67141.0,67138.0,0.00015934]
[1718133697981,0.26194,67141.0,67140.0,0.00015934]
[1718133698365,0.25594,67141.0,67140.0,0.00015934]
[1718133698706,0.25594,67141.0,67138.0,0.001]
[1718133698707,0.29875776,67141.0,67138.0,0.001]
[1718133698934,0.29975776,67141.0,67139.0,0.00500553]
[1718133699172,0.25794,67141.0,67139.0,0.00500553]
[1718133699395,0.25794,67141.0,67140.0,0.001]
[1718133699605,0.24894,67141.0,67139.0,0.00500553]
[1718133699827,0.25994,67141.0,67140.0,0.00600032]
[1718133700034,0.26794,67141.0,67140.0,0.00600032]
[1718133700266,0.25694,67141.0,67140.0,0.00500032]
[1718133700478,0.24894,67141.0,67140.0,0.00500032]
[1718133700680,0.24894,67141.0,67136.0,0.2384]
[1718133700681,0.25894,67141.0,67139.0,0.001]
[1718133700898,0.30205776,67141.0,67140.0,0.00499778]
[1718133701128,0.31205776,67141.0,67140.0,0.00499778]
[1718133701353,0.31805776,67141.0,67140.0,0.00499778]
[1718133701576,0.31805776,67141.0,67139.0,0.001]
[1718133701577,0.158942,67140.0,67139.0,0.001]
[1718133701803,0.158942,67140.0,67132.0,0.000946]
[1718133701804,0.148957,67134.0,67132.0,0.000946]
[1718133702028,0.1,67133.0,67132.0,0.00110534]
[1718133703386,0.1,67133.0,67132.0,0.24580534]
[1718133703565,0.01791763,67146.0,67132.0,0.24580534]
[1718133703566,0.1,67138.0,67137.0,0.24485934]
[1718133703818,0.148938,67142.0,67141.0,0.00015934]
[1718133704042,0.248938,67142.0,67141.0,0.00015934]
[1718133704266,0.1,67142.0,67141.0,0.00015934]
[1718133704505,0.1,67142.0,67141.0,0.24485934]
[1718133705169,0.149788,67147.0,67143.0,0.00015934]
[1718133705170,0.24893,67146.0,67143.0,0.00015934]
[1718133705845,0.24893,67146.0,67142.0,0.00015934]
[1718133705973,0.24893,67146.0,67141.0,0.24485934]
[1718133706174,0.24893,67146.0,67141.0,0.2447]
[1718133706456,0.148932,67145.0,67143.0,0.001]
[1718133706691,0.1,67144.0,67143.0,0.002]
[1718133706924,0.1,67144.0,67143.0,0.001]
[1718133707599,0.1,67144.0,67143.0,0.00115934]
[1718133708088,0.1,67144.0,67143.0,0.00015934]
[1718133709877,0.1,67144.0,67143.0,0.00115934]
[1718133710103,0.1,67144.0,67143.0,0.00015934]
[1718133710572,0.113,67144.0,67143.0,0.00215934]
[1718133710775,0.113,67144.0,67143.0,0.23495934]
[1718133711834,0.013,67144.0,67143.0,0.23495934]
[1718133712016,0.013,67144.0,67143.0,0.239899]
[1718133717871,0.161933,67144.0,67143.0,0.08893966]
[1718133718340,0.261933,67144.0,67143.0,0.08893966]
[1718133718794,0.261933,67144.0,67143.0,0.084]
[1718133719244,0.261933,67144.0,67143.0,0.08890358]
[1718133719473,0.38550545,67144.0,67143.0,0.08890358]
[1718133719703,0.261933,67144.0,67143.0,0.08890358]
[1718133720137,0.3855035,67144.0,67143.0,0.08890358]
[1718133720819,0.30056935,67144.0,67143.0,0.08890358]
[1718133721046,0.42414209,67144.0,67143.0,0.08890358]
[1718133721479,0.38550574,67144.0,67143.0,0.08890358]
[1718133723655,0.53982567,67144.0,67143.0,0.00690358]
[1718133724131,0.52982567,67144.0,67143.0,0.002]
[1718133724350,0.62100803,67144.0,67143.0,0.002]
[1718133724816,0.61100803,67144.0,67143.0,0.002]
[1718133725041,0.52982567,67144.0,67143.0,0.002]
[1718133726196,0.53068567,67144.0,67143.0,0.002]
[1718133726854,0.38636574,67144.0,67143.0,0.23385934]
[1718133727344,0.38636574,67144.0,67143.0,0.2387898]
[1718133727782,0.13743274,67144.0,67143.0,0.26266878]
[1718133728025,0.01386,67144.0,67143.0,0.26266878]
[1718133728245,0.01386,67144.0,67143.0,0.2387898]
[1718133728870,0.01386,67144.0,67143.0,0.2486898]
[1718133730656,0.00686,67144.0,67143.0,0.2476898]
[1718133731148,0.00086,67144.0,67143.0,0.2466898]
[1718133731378,0.00086,67144.0,67143.0,0.2476898]
[1718133732008,0.00086,67144.0,67143.0,0.28735228]
[1718133732233,0.00086,67144.0,67143.0,0.61738728]
[1718133732666,0.00086,67144.0,67143.0,0.5678248]
[1718133732870,0.00086,67144.0,67143.0,0.5777248]
[1718133733307,0.00086,67144.0,67143.0,0.3966248]
[1718133734169,0.00086,67144.0,67143.0,0.3956248]
[1718133734382,0.00186,67144.0,67143.0,0.4046248]
[1718133734821,0.00286,67144.0,67143.0,0.4116248]
[1718133736371,0.00286,67144.0,67143.0,0.4017248]
[1718133737690,0.00286,67144.0,67143.0,0.4116248]
[1718133739226,0.00286,67144.0,67143.0,0.4017248]
[1718133742419,0.00286,67144.0,67143.0,0.40078346]
[1718133744189,0.00286,67144.0,67143.0,0.42068346]
[1718133744393,0.00286,67144.0,67143.0,0.40078346]
[1718133744807,0.00286,67144.0,67143.0,0.42068346]
[1718133746734,0.00286,67144.0,67143.0,0.40078346]
[1718133746946,0.00286,67144.0,67143.0,0.25184846]
[1718133749346,0.00286,67144.0,67143.0,0.09804846]
[1718133749563,0.00286,67144.0,67143.0,0.02093046]
[1718133749996,0.12642613,67144.0,67143.0,0.02093046]
[1718133750212,0.22642613,67144.0,67143.0,0.02093046]
[1718133750428,0.11558861,67144.0,67143.0,0.02093046]
[1718133750872,0.10286,67144.0,67143.0,0.02093046]
[1718133751088,0.10186,67144.0,67143.0,0.01393046]
[1718133751358,0.00186,67144.0,67143.0,0.01393046]
[1718133751577,0.00086,67144.0,67143.0,0.00493046]
[1718133752081,0.00086,67144.0,67143.0,0.001]
[1718133752942,0.00086,67144.0,67143.0,0.00580736]
[1718133754013,0.00086,67144.0,67143.0,0.02570736]
[1718133754671,0.00086,67144.0,67143.0,0.00580736]
[1718133758733,0.00086,67144.0,67143.0,0.03166404]
[1718133758992,0.00086,67144.0,67143.0,0.59699904]
[1718133759239,0.00086,67144.0,67143.0,0.64247323]
[1718133759493,0.00086,67144.0,67143.0,0.59794504]
[1718133759947,0.00086,67144.0,67143.0,0.43549083]
[1718133760192,0.00086,67144.0,67143.0,0.39098836]
[1718133761354,0.00086,67144.0,67143.0,0.41088836]
[1718133764017,0.00086,67144.0,67143.0,0.51127809]
[1718133764645,0.00086,67144.0,67143.0,0.90163802]
[1718133764889,0.00086,67144.0,67143.0,1.04595795]
[1718133765126,0.00086,67144.0,67143.0,1.68547059]
[1718133765359,0.00086,67144.0,67143.0,1.39646833]
[1718133765570,0.00086,67144.0,67143.0,1.48545367]
[1718133767084,0.00186,67144.0,67143.0,1.49345367]
[1718133767341,0.00186,67144.0,67143.0,1.7048842]
[1718133767562,0.00286,67144.0,67143.0,1.7138842]
[1718133767779,0.00186,67144.0,67143.0,1.7058842]
[1718133767988,0.00186,67144.0,67143.0,1.7098842]
[1718133768215,0.00286,67144.0,67143.0,1.7238842]
[1718133769058,0.00286,67144.0,67143.0,1.8238842]
[1718133769291,0.00286,67144.0,67143.0,1.73489886]
[1718133773939,0.00286,67144.0,67143.0,2.35576986]
[1718133774149,0.00086,67147.0,67146.0,1.512727]
[1718133774369,0.00086,67147.0,67146.0,2.37367941]
[1718133774617,0.00086,67147.0,67146.0,2.37822813]
[1718133775447,0.07215996,67168.0,67167.0,0.0199]
[1718133775664,0.0068,67176.0,67167.0,0.2663]
[1718133775875,0.0068,67176.0,67168.0,0.02977034]
[1718133776291,0.0068,67176.0,67169.0,0.00452743]
[1718133776504,0.0068,67176.0,67170.0,0.00595443]
[1718133777181,0.0068,67176.0,67171.0,0.00452743]
[1718133777424,0.17215996,67177.0,67171.0,0.00595444]
[1718133777640,0.07215996,67177.0,67172.0,0.00450076]
[1718133778075,0.07215996,67177.0,67170.0,0.0199]
[1718133778295,0.002,67175.0,67173.0,0.00450076]
[1718133778511,0.002,67175.0,67171.0,0.00595414]
[1718133778721,0.002,67175.0,67172.0,0.04465356]
[1718133778932,0.002,67175.0,67173.0,0.00595395]
[1718133779158,0.002,67175.0,67173.0,0.010444]
[1718133779395,0.00857,67179.0,67173.0,0.010444]
[1718133780612,0.00857,67179.0,67175.0,0.0199]
[1718133780772,0.00857,67179.0,67176.0,0.00595389]
[1718133783705,0.00857,67179.0,67176.0,0.08615389]
[1718133784122,0.00857,67179.0,67177.0,0.0043879]
[1718133785152,0.00857,67179.0,67177.0,0.0043379]
[1718133785559,0.00857,67179.0,67178.0,0.001]
[1718133785768,0.00857,67179.0,67178.0,0.0053829]
[1718133789740,0.00857,67179.0,67178.0,0.1074829]
[1718133789940,0.00857,67179.0,67178.0,0.15330657]
[1718133790377,0.00857,67179.0,67178.0,0.1074829]
[1718133790532,0.00857,67179.0,67178.0,0.16863745]
[1718133790925,0.00857,67179.0,67178.0,0.31949545]
[1718133791135,0.00857,67179.0,67178.0,0.32249545]
[1718133791761,0.00857,67179.0,67178.0,0.88315538]
[1718133791968,0.00857,67179.0,67178.0,1.01747531]
[1718133792670,0.00857,67179.0,67178.0,1.01547531]
[1718133793092,0.00857,67179.0,67178.0,1.22047531]
[1718133793309,0.00857,67179.0,67178.0,1.22747531]
[1718133793518,0.00857,67179.0,67178.0,1.29382051]
[1718133793747,0.00857,67196.0,67195.0,0.14882]
[1718133793961,0.00857,67196.0,67195.0,2.20352093]
[1718133794182,0.00857,67196.0,67195.0,2.14007963]
[1718133795072,0.00857,67196.0,67195.0,2.34007963]
[1718133795285,0.00856,67204.0,67200.0,0.368709]
[1718133795494,0.00856,67204.0,67200.0,1.65874287]
[1718133795710,0.00856,67204.0,67200.0,1.73538067]
[1718133795928,0.00856,67204.0,67200.0,1.83538067]
[1718133797185,0.00856,67204.0,67200.0,1.84738067]
[1718133797402,0.00856,67204.0,67200.0,1.20086158]
[1718133797645,0.00856,67204.0,67200.0,1.31386158]
[1718133798485,0.00856,67204.0,67200.0,1.31409891]
[1718133798716,0.00856,67204.0,67200.0,1.21409891]
[1718133798903,0.00856,67204.0,67200.0,1.00999891]
[1718133799311,0.00856,67204.0,67200.0,0.88618298]
[1718133799527,0.00856,67204.0,67200.0,0.82096893]
[1718133799752,0.00856,67204.0,67200.0,0.80896893]
[1718133799963,0.00856,67204.0,67200.0,0.256209]
[1718133800178,0.00856,67204.0,67200.0,0.025]
[1718133800602,0.00856,67204.0,67196.0,0.148817]
[1718133801217,0.00856,67204.0,67192.0,0.24604]
[1718133801411,0.00856,67204.0,67200.0,0.013]
[1718133801614,0.00856,67204.0,67192.0,0.39035993]
[1718133801829,0.00856,67204.0,67193.0,0.0199]
[1718133802048,0.00856,67204.0,67200.0,0.012]
[1718133802449,0.00856,67204.0,67196.0,0.013]
[1718133802658,0.00856,67204.0,67196.0,0.07020799]
[1718133803086,0.00856,67204.0,67199.0,0.0199]
[1718133803292,0.00856,67204.0,67199.0,0.00595182]
[1718133803513,0.00856,67204.0,67200.0,0.180709]
[1718133803705,0.00856,67204.0,67200.0,0.411409]
[1718133803914,0.00856,67204.0,67200.0,0.4720747]
[1718133804124,0.00856,67204.0,67200.0,0.399409]
[1718133805335,0.00856,67204.0,67200.0,0.78976893]
[1718133806146,0.00856,67204.0,67200.0,0.79976893]
[1718133806516,0.00856,67204.0,67200.0,0.81176893]
[1718133807702,0.00856,67204.0,67200.0,0.79186893]
[1718133808079,0.00856,67204.0,67200.0,0.81176893]
[1718133809958,0.00856,67204.0,67200.0,0.81171584]
[1718133810171,0.00856,67204.0,67200.0,0.91672353]
[1718133810379,0.00856,67204.0,67200.0,0.89682353]
[1718133810790,0.00856,67204.0,67200.0,0.91672353]
[1718133811594,0.00856,67204.0,67200.0,0.91667022]
[1718133814747,0.00856,67204.0,67200.0,0.81166253]
[1718133816024,0.00856,67204.0,67200.0,0.79176253]
[1718133816256,0.00856,67204.0,67200.0,0.4167426]
[1718133816458,0.03256,67204.0,67200.0,0.4167426]
[1718133817048,0.03256,67204.0,67200.0,0.1707026]
[1718133817411,0.05256,67204.0,67200.0,0.022]
[1718133817612,0.03256,67201.0,67200.0,0.022]
[1718133817773,0.03256,67201.0,67200.0,0.0178227]
[1718133818421,0.03256,67201.0,67200.0,0.012]
[1718133818628,0.03256,67201.0,67200.0,0.015]
[1718133820221,0.03256,67201.0,67200.0,0.003]
[1718133820428,0.03256,67201.0,67200.0,0.008]
[1718133821199,0.03256,67201.0,67200.0,0.01189721]
[1718133823484,0.55097193,67201.0,67200.0,0.01189721]
[1718133823696,1.50373287,67201.0,67200.0,0.01189721]
[1718133823970,0.024,67190.0,67177.0,0.000935]
[1718133824183,0.25428773,67189.0,67177.0,0.000935]
[1718133824402,0.2099678,67188.0,67177.0,0.000935]
[1718133824617,0.1,67188.0,67177.0,0.000935]
[1718133824834,0.1,67188.0,67177.0,0.149794]
[1718133826142,0.1,67188.0,67178.0,0.002]
[1718133826582,0.1,67188.0,67178.0,0.150858]
[1718133827762,0.1,67188.0,67178.0,0.151858]
[1718133827988,0.024,67187.0,67178.0,0.151858]
[1718133828190,0.024,67187.0,67178.0,0.153858]
[1718133828414,0.024,67187.0,67178.0,0.149858]
[1718133828844,0.024,67187.0,67178.0,0.150858]
[1718133829080,0.024,67187.0,67178.0,0.149858]
[1718133829305,0.04114105,67186.0,67178.0,0.149858]
[1718133829520,0.04114105,67186.0,67178.0,0.001]
[1718133829521,0.07215996,67181.0,67178.0,0.001]
[1718133829737,0.024,67180.0,67178.0,0.001]
[1718133831675,0.026,67180.0,67178.0,0.001]
[1718133832140,0.006,67180.0,67178.0,0.001]
[1718133832624,0.002,67180.0,67178.0,0.001]
[1718133833068,0.024,67186.0,67178.0,0.001]
[1718133834437,0.002,67180.0,67178.0,0.001]
[1718133834660,0.46815996,67199.0,67185.0,0.148842]
[1718133834884,0.24047989,67199.0,67186.0,0.00595296]
[1718133835114,0.24047989,67199.0,67186.0,0.15479096]
[1718133835371,0.24047989,67199.0,67187.0,0.0764]
[1718133836234,0.24047989,67199.0,67187.0,0.225237]
[1718133836929,0.024,67199.0,67190.0,0.0199]
[1718133837137,0.024,67199.0,67191.0,0.16935254]
[1718133837354,0.024,67199.0,67192.0,0.148826]
[1718133837816,0.00856,67201.0,67192.0,0.148826]
[1718133838487,0.00856,67201.0,67193.0,0.00595252]
[1718133838710,0.001,67199.0,67193.0,0.00595252]
[1718133838949,0.002,67199.0,67195.0,0.148819]
[1718133839179,0.00856,67201.0,67195.0,0.148819]
[1718133839594,0.01456,67201.0,67196.0,0.0787]
[1718133839813,0.01256,67201.0,67196.0,0.0787]
[1718133840033,0.00856,67201.0,67196.0,0.0787]
[1718133840256,0.006,67199.0,67196.0,0.0787]
[1718133842081,0.07215996,67198.0,67196.0,0.0787]
[1718133842322,0.024,67197.0,67187.0,0.224237]
[1718133842543,0.024,67197.0,67188.0,0.148835]
[1718133843308,0.024,67197.0,67196.0,0.002]
[1718133843740,0.025,67197.0,67188.0,0.148835]
[1718133843959,0.026,67197.0,67188.0,0.157835]
[1718133844652,0.026,67197.0,67189.0,0.148833]
[1718133845307,0.025,67197.0,67189.0,0.148833]
[1718133845498,0.026,67197.0,67189.0,0.148833]
[1718133845688,0.025,67197.0,67189.0,0.148833]
[1718133846369,0.025,67197.0,67189.0,0.151833]
[1718133846592,0.024,67197.0,67189.0,0.151833]
[1718133846813,0.024,67197.0,67189.0,0.152833]
[1718133847251,0.024,67197.0,67189.0,0.149833]
[1718133847655,0.024,67197.0,67190.0,0.148831]
[1718133849623,0.1,67200.0,67193.0,0.148824]
[1718133849831,0.1,67200.0,67194.0,0.18705231]
[1718133850045,0.00856,67201.0,67195.0,0.0777]
[1718133850485,0.07215996,67199.0,67195.0,0.0777]
[1718133851046,0.07215996,67199.0,67195.0,0.148819]
[1718133852596,0.07715996,67199.0,67195.0,0.149819]
[1718133853600,0.07215996,67199.0,67195.0,0.149819]
[1718133853818,0.07215996,67199.0,67195.0,0.148819]
[1718133853991,0.006,67199.0,67195.0,0.149819]
[1718133854777,0.006,67199.0,67195.0,0.151819]
[1718133854988,0.006,67199.0,67195.0,0.149819]
[1718133855380,0.007,67199.0,67195.0,0.149819]
[1718133855587,0.001,67199.0,67195.0,0.148819]
[1718133856000,0.003,67199.0,67195.0,0.148819]
[1718133869019,0.003,67199.0,67196.0,0.0815]
[1718133869663,0.003,67199.0,67198.0,0.148813]
[1718133869914,0.003,67199.0,67198.0,0.79973293]
[1718133869915,0.001,67199.0,67198.0,0.79973293]
[1718133870132,0.001,67199.0,67198.0,0.85121888]
[1718133870346,0.00086,67200.0,67199.0,0.414711]
[1718133870561,0.00086,67200.0,67199.0,1.04410999]
[1718133872686,0.00186,67200.0,67199.0,1.05510999]
[1718133872890,0.00286,67200.0,67199.0,1.06810999]
[1718133873595,0.00286,67200.0,67199.0,1.04820999]
[1718133874003,0.00286,67200.0,67199.0,1.06810999]
[1718133874845,0.00286,67200.0,67199.0,1.04820999]
[1718133875684,0.00286,67200.0,67199.0,1.06810999]
[1718133878020,0.00286,67200.0,67199.0,1.11251067]
[1718133878226,0.00286,67200.0,67199.0,1.06810999]
[1718133878637,0.00286,67200.0,67199.0,1.11255084]
[1718133879167,0.00286,67200.0,67199.0,1.04820999]
[1718133879587,0.00286,67200.0,67199.0,1.09266091]
[1718133880212,0.00286,67200.0,67199.0,1.04820999]
[1718133880418,0.00286,67200.0,67199.0,0.86710999]
[1718133880622,0.00286,67200.0,67199.0,0.79463093]
[1718133881795,0.00286,67200.0,67199.0,0.83909072]
[1718133882560,0.00286,67200.0,67199.0,0.83909057]
[1718133882965,0.00286,67200.0,67199.0,0.79463093]
[1718133883584,0.00286,67200.0,67199.0,0.85898646]
[1718133884003,0.00286,67200.0,67199.0,0.88452223]
[1718133884196,0.00286,67200.0,67199.0,1.00193375]
[1718133884443,0.00286,67200.0,67199.0,1.18303375]
[1718133885002,0.00286,67200.0,67199.0,1.07423375]
[1718133885202,0.00286,67200.0,67199.0,1.37185675]
[1718133885402,0.00286,67200.0,67199.0,1.51617668]
[1718133885603,0.00286,67200.0,67199.0,1.5384065]
[1718133885848,0.00286,67200.0,67199.0,1.6272574]
[1718133886059,0.00286,67200.0,67199.0,1.7502574]
[1718133886869,0.00286,67200.0,67199.0,1.8585574]
[1718133887013,0.00286,67200.0,67199.0,1.6585574]
[1718133887208,0.00286,67200.0,67199.0,1.6595034]
[1718133889082,0.00286,67200.0,67199.0,1.66123417]
[1718133889877,0.00286,67200.0,67199.0,1.66123486]
[1718133890739,0.00286,67200.0,67199.0,1.86123486]
[1718133891403,0.00286,67200.0,67199.0,2.15885786]
[1718133891633,0.00857,67202.0,67201.0,1.549321]
[1718133891854,0.00857,67202.0,67201.0,1.81685593]
[1718133892942,0.00857,67202.0,67201.0,2.11446993]
[1718133893157,0.00957,67202.0,67201.0,2.13846993]
[1718133893367,0.01057,67202.0,67201.0,2.13846993]
[1718133893546,0.01057,67202.0,67201.0,2.28278986]
[1718133894280,0.00957,67202.0,67201.0,2.26978986]
[1718133894482,0.00857,67202.0,67201.0,2.25878986]
[1718133894689,0.00857,67202.0,67201.0,2.27178986]
[1718133894905,0.00857,67202.0,67201.0,2.28278986]
[1718133895387,0.00857,67202.0,67201.0,2.25878986]
[1718133895626,0.00387915,67204.0,67203.0,1.909912]
[1718133895851,0.00387915,67204.0,67203.0,2.57036686]
[1718133896276,0.00387915,67204.0,67203.0,2.37036686]
[1718133896481,0.00387915,67204.0,67203.0,2.57036686]
[1718133896705,0.00387915,67204.0,67203.0,2.55966094]
[1718133897360,0.00387915,67204.0,67203.0,2.35966094]
[1718133897513,0.00387915,67204.0,67203.0,0.77295094]
[1718133897724,0.00387915,67204.0,67203.0,0.57308395]
[1718133897938,0.00387915,67204.0,67201.0,0.13296007]
[1718133897939,0.00387915,67204.0,67201.0,0.022]
[1718133898139,0.024,67203.0,67201.0,0.012]
[1718133898320,0.024,67203.0,67199.0,0.000946]
[1718133898520,0.00387915,67204.0,67199.0,0.000946]
[1718133898521,0.07215996,67200.0,67199.0,0.000946]
[1718133898812,0.09615996,67200.0,67199.0,0.000946]
[1718133899939,0.09615996,67200.0,67199.0,0.009946]
[1718133900147,0.21961704,67200.0,67199.0,0.016946]
[1718133900595,0.27884646,67200.0,67199.0,0.016946]
[1718133900804,0.37885294,67200.0,67199.0,0.016946]
[1718133901461,0.37885294,67200.0,67199.0,0.000946]
[1718133901671,0.37885294,67200.0,67199.0,0.003946]
[1718133901896,0.37885294,67200.0,67199.0,0.004946]
[1718133902109,0.67198187,67200.0,67199.0,0.001946]
[1718133902540,0.67198187,67200.0,67199.0,0.002946]
[1718133902541,0.67498187,67200.0,67199.0,0.002946]
[1718133902778,0.67498187,67200.0,67199.0,0.001946]
[1718133903224,0.97298187,67200.0,67199.0,0.000946]
[1718133903438,0.02,67191.0,67178.0,0.001946]
[1718133903651,0.28778349,67190.0,67178.0,0.001946]
[1718133903869,0.22346356,67189.0,67178.0,0.001946]
[1718133904370,0.023,67187.0,67178.0,0.001946]
[1718133904576,0.123,67187.0,67178.0,0.001946]
[1718133905201,0.123,67187.0,67179.0,0.0308339]
[1718133905426,0.123,67187.0,67178.0,0.001946]
[1718133905632,0.1,67186.0,67178.0,0.001946]
[1718133905840,0.023,67187.0,67178.0,0.001946]
[1718133906057,0.023,67187.0,67183.0,0.001]
[1718133906261,0.025,67187.0,67183.0,0.001]
[1718133906466,0.027,67187.0,67183.0,0.001]
[1718133906878,0.025,67187.0,67183.0,0.001]
[1718133907490,0.002,67187.0,67183.0,0.001]
[1718133907834,0.002,67187.0,67184.0,0.2342]
[1718133908055,0.002,67187.0,67185.0,0.00595297]
[1718133908263,0.1,67198.0,67185.0,0.00595297]
[1718133908670,0.008,67187.0,67186.0,0.0390001]
[1718133909001,0.007,67187.0,67185.0,0.00595297]
[1718133909204,0.02,67196.0,67185.0,0.00595297]
[1718133909456,0.07215996,67186.0,67185.0,0.001]
[1718133909834,0.07215996,67186.0,67185.0,0.002]
[1718133910058,0.07215996,67186.0,67185.0,0.001]
[1718133910504,0.07215996,67186.0,67185.0,0.002]
[1718133910929,0.07215996,67186.0,67185.0,0.001]
[1718133911143,0.01,67187.0,67185.0,0.001]
[1718133911568,0.1,67190.0,67183.0,0.001]
[1718133911769,0.1,67190.0,67185.0,0.001]
[1718133911978,0.01,67186.0,67185.0,0.001]
[1718133912393,0.009,67186.0,67185.0,0.001]
[1718133912607,0.01,67187.0,67185.0,0.001]
[1718133913246,0.109,67190.0,67183.0,0.001]
[1718133913458,0.01,67186.0,67185.0,0.001]
[1718133913674,0.019,67186.0,67185.0,0.002]
[1718133913890,0.019,67186.0,67185.0,0.001]
[1718133914098,0.21084,67186.0,67185.0,0.001]
[1718133914340,0.21084,67186.0,67185.0,0.002]
[1718133914606,0.20084,67186.0,67185.0,0.001]
[1718133914824,0.40037702,67186.0,67185.0,0.001]
[1718133915034,0.50037702,67186.0,67185.0,0.002]
[1718133915466,0.50037702,67186.0,67185.0,0.001]
[1718133915910,0.191844,67184.0,67183.0,0.001]
[1718133916121,0.3600421,67184.0,67183.0,0.001]
[1718133916981,0.271844,67184.0,67183.0,0.001]
[1718133917192,0.13,67184.0,67183.0,0.002]
[1718133917409,0.03,67184.0,67183.0,0.002]
[1718133917625,0.05,67184.0,67183.0,0.002]
[1718133917841,0.03,67184.0,67183.0,0.002]
[1718133918914,0.05,67184.0,67183.0,0.002]
[1718133919121,0.03,67184.0,67183.0,0.002]
[1718133919326,0.31532035,67184.0,67183.0,0.003]
[1718133919630,0.42332035,67184.0,67183.0,0.003]
[1718133920567,0.40332035,67184.0,67183.0,0.003]
[1718133920785,0.35900396,67184.0,67183.0,0.003]
[1718133921198,0.35900396,67184.0,67183.0,0.003946]
[1718133921416,0.37900396,67184.0,67183.0,0.003946]
[1718133921873,0.35900396,67184.0,67183.0,0.003946]
[1718133922119,0.37900396,67184.0,67183.0,0.003946]
[1718133922988,0.43133635,67184.0,67183.0,0.003946]
[1718133923650,0.286844,67184.0,67183.0,0.003946]
[1718133925468,0.41034405,67184.0,67183.0,0.003946]
[1718133925678,0.286844,67184.0,67183.0,0.003946]
[1718133926294,0.4103433,67184.0,67183.0,0.003946]
[1718133928862,0.40777564,67184.0,67183.0,0.003946]
[1718133929509,0.48677036,67184.0,67183.0,0.003946]
[1718133930915,0.50506798,67184.0,67183.0,0.003946]
[1718133932547,0.64938791,67184.0,67183.0,0.003946]
[1718133932708,0.99652791,67184.0,67183.0,0.003946]
[1718133932912,1.1817802,67184.0,67183.0,0.003946]
[1718133933129,0.389356,67179.0,67178.0,0.000946]
[1718133933341,1.46505945,67179.0,67178.0,0.000946]
[1718133933573,1.79613545,67179.0,67178.0,0.000946]
[1718133934195,1.60413545,67179.0,67178.0,0.001946]
[1718133934395,1.78284345,67179.0,67178.0,0.001946]
[1718133934596,1.53884345,67179.0,67178.0,0.000946]
[1718133934865,1.73884345,67179.0,67178.0,0.001946]
[1718133935024,1.74884345,67179.0,67178.0,0.001946]
[1718133935438,1.76284345,67179.0,67178.0,0.002946]
[1718133935858,1.74884345,67179.0,67178.0,0.001946]
[1718133936259,1.57759116,67179.0,67178.0,0.001946]
[1718133936867,1.76284345,67179.0,67178.0,0.001946]
[1718133937287,1.57759116,67179.0,67178.0,0.001946]
[1718133937714,1.76284345,67179.0,67178.0,0.001946]
[1718133937926,1.57759116,67179.0,67178.0,0.001946]
[1718133938348,1.76284345,67179.0,67178.0,0.001946]
[1718133939191,1.57759116,67179.0,67178.0,0.001946]
[1718133940070,1.37759116,67179.0,67178.0,0.001946]
[1718133940484,1.20380716,67179.0,67178.0,0.001946]
[1718133940900,1.30910316,67179.0,67178.0,0.001946]
[1718133941118,1.20380716,67179.0,67178.0,0.001946]
[1718133941564,1.05948723,67179.0,67178.0,0.001946]
[1718133942660,1.05951806,67179.0,67178.0,0.001946]
[1718133943285,0.87891806,67179.0,67178.0,0.001946]
[1718133943495,0.54070606,67179.0,67178.0,0.084146]
[1718133944568,0.39638613,67179.0,67178.0,0.084146]
[1718133944783,0.24753013,67179.0,67178.0,0.084146]
[1718133945277,0.16546768,67179.0,67178.0,0.084146]
[1718133945493,0.48815,67179.0,67178.0,0.001946]
[1718133945712,0.53668232,67179.0,67178.0,0.000946]
[1718133945930,0.55068232,67179.0,67178.0,0.001946]
[1718133946155,0.67746121,67179.0,67178.0,0.001946]
[1718133946391,0.66346121,67179.0,67178.0,0.000946]
[1718133946613,0.67746121,67179.0,67178.0,0.002946]
[1718133946861,0.67746121,67179.0,67178.0,0.001946]
[1718133947079,0.66346121,67179.0,67178.0,0.000946]
[1718133947304,0.67746121,67179.0,67178.0,0.001946]
[1718133947539,0.69146121,67179.0,67178.0,0.001946]
[1718133947774,0.67146121,67179.0,67178.0,0.001946]
[1718133948212,0.67146914,67179.0,67178.0,0.001946]
[1718133948879,0.69146914,67179.0,67178.0,0.001946]
[1718133949113,0.67146914,67179.0,67178.0,0.002946]
[1718133949317,0.67746914,67179.0,67178.0,0.001946]
[1718133949532,0.67746914,67179.0,67178.0,0.002946]
[1718133949533,0.65746914,67179.0,67178.0,0.002946]
[1718133949742,0.67746914,67179.0,67178.0,0.001946]
[1718133949949,0.53069025,67179.0,67178.0,0.002946]
[1718133950183,0.54469025,67179.0,67178.0,0.002946]
[1718133950422,0.56469025,67179.0,67178.0,0.002946]
[1718133951522,0.56469415,67179.0,67178.0,0.002946]
[1718133954606,0.56469632,67179.0,67178.0,0.002946]
[1718133954828,0.74529632,67179.0,67178.0,0.002946]
[1718133955048,0.87356261,67179.0,67178.0,0.002946]
[1718133955925,0.54469632,67179.0,67178.0,0.002946]
[1718133956147,0.56469632,67179.0,67178.0,0.084446]
[1718133956356,0.56469632,67179.0,67178.0,0.249246]
[1718133956587,0.54469632,67179.0,67178.0,0.249246]
[1718133957462,0.56469632,67179.0,67178.0,0.249246]
[1718133960266,0.54469632,67179.0,67178.0,0.249246]